fUST/lending_fUST_20250121
["ID","MTS","AMOUNT","RATE_DAILY","PERIOD"]
[349723486,1737395438964,-500.0,0.00022465,3]
[349723488,1737395438974,-289.88,0.00022465,3]
[349723490,1737395438984,-500.0,0.00022465,3]
[349723493,1737395438994,-500.0,0.00022465,3]
[349723495,1737395439004,-676.12,0.00022465,3]
[349723497,1737395439014,-439.42,0.00022465,3]
[349723499,1737395439023,-537.24,0.00022465,3]
[349723501,1737395439033,-500.0,0.00022465,3]
[349723503,1737395439043,-576.07340262,0.00022487,2]
[349723505,1737395439055,-500.0,0.00022494,2]
[349723507,1737395439065,-1121.75,0.00022601,3]
[349723509,1737395439074,-570.3,0.00022602,2]
[349723511,1737395439084,-663.11,0.00022602,2]
[349723513,1737395439093,-500.0,0.00022602,3]
[349723515,1737395439103,-1665.44,0.00022602,3]
[349723517,1737395439113,-500.0,0.00022602,3]
[349723519,1737395439123,-500.0,0.00022602,3]
[349723521,1737395439134,-500.0,0.00022602,3]
[349723523,1737395439144,-505.88,0.00022602,3]
[349723525,1737395439153,-500.0,0.00022602,3]
[349723527,1737395439164,-279.28,0.00022602,3]
[349723529,1737395439174,-500.0,0.00022602,3]
[349723531,1737395439184,-500.0,0.00022602,3]
[349723533,1737395439195,-500.0,0.00022602,3]
[349723535,1737395439205,-500.0,0.00022602,3]
[349723537,1737395439214,-206.95,0.00022602,3]
[349723539,1737395439225,-676.12,0.00022602,3]
[349723541,1737395439235,-500.0,0.00022602,3]
[349723543,1737395439245,-1121.75,0.00022738,3]
[349723545,1737395439255,-663.11,0.00022739,2]
[349723548,1737395439265,-500.0,0.00022739,3]
[349723549,1737395439274,-1665.44,0.00022739,3]
[349723552,1737395439284,-500.0,0.00022739,3]
[349723554,1737395439297,-461.0,0.00022739,3]
[349723555,1737395439308,-500.0,0.00022739,3]
[349723558,1737395439317,-505.88,0.00022739,3]
[349723561,1737395439327,-500.0,0.00022739,3]
[349723563,1737395439337,-500.0,0.00022739,3]
[349723565,1737395439347,-500.0,0.00022739,3]
[349723567,1737395439356,-467.50913747,0.00022739,3]
[349723569,1737395439366,-550.57,0.00022739,3]
[349723571,1737395439376,-676.12,0.00022739,3]
[349723573,1737395439385,-500.0,0.00022739,3]
[349723575,1737395439395,-576.07340262,0.00022822,2]
[349723577,1737395439404,-500.0,0.00022875,3]
[349723579,1737395439413,-500.0,0.00022875,3]
[349723581,1737395439423,-1121.75,0.00022875,3]
[349723584,1737395439432,-500.0,0.00022875,2]
[349723586,1737395439441,-250.0,0.00022875,2]
[349723588,1737395439450,-162.27165446,0.00022875,2]
[349723590,1737395439459,-500.0,0.00022875,2]
[349723592,1737395439468,-540.0,0.00022875,2]
[349723594,1737395439478,-391.91201534,0.00022875,2]
[349723596,1737395439488,-394.46960695,0.00022875,2]
[349723599,1737395439498,-175.0,0.00022875,2]
[349723601,1737395439508,-663.11,0.00022876,2]
[349723603,1737395439517,-500.0,0.00022876,3]
[349723605,1737395439527,-1665.44,0.00022876,3]
[349723608,1737395439537,-220.86,0.00022876,3]
[349723611,1737395439549,-505.88,0.00022876,3]
[349723614,1737395439563,-500.0,0.00022876,3]
[349723617,1737395439572,-500.0,0.00022876,3]
[349723621,1737395439582,-500.0,0.00022876,3]
[349723624,1737395439591,-676.12,0.00022876,3]
[349723627,1737395439601,-500.0,0.00022876,3]
[349723630,1737395439611,-500.0,0.00022976,2]
[349723632,1737395439621,-1121.75,0.00023012,3]
[349723634,1737395439631,-663.11,0.00023013,2]
[349723636,1737395439641,-500.0,0.00023013,3]
[349723638,1737395439651,-1665.44,0.00023013,3]
[349723641,1737395439661,-505.88,0.00023013,3]
[349723643,1737395439672,-500.0,0.00023013,3]
[349723645,1737395439681,-500.0,0.00023013,3]
[349723647,1737395439690,-500.0,0.00023013,3]
[349723649,1737395439700,-676.12,0.00023013,3]
[349723651,1737395439710,-500.0,0.00023013,3]
[349723653,1737395439719,-1000.0,0.00023042,2]
[349723655,1737395439729,-482.477,0.0002306,2]
[349723657,1737395439739,-706.6564942,0.00023096,2]
[349723659,1737395439748,-1121.75,0.00023149,3]
[349723661,1737395439758,-663.11,0.0002315,2]
[349723663,1737395439767,-500.0,0.0002315,3]
[349723665,1737395439777,-1665.44,0.0002315,3]
[349723667,1737395439787,-505.88,0.0002315,3]
[349723669,1737395439800,-500.0,0.0002315,3]
[349723671,1737395439811,-500.0,0.0002315,3]
[349723673,1737395439820,-500.0,0.0002315,3]
[349723675,1737395439830,-676.12,0.0002315,3]
[349723677,1737395439840,-500.0,0.0002315,3]
[349723690,1737395439950,-576.07340262,0.00023158,2]
[349723692,1737395439960,-1121.75,0.00023286,3]
[349723694,1737395439970,-663.11,0.00023287,2]
[349723696,1737395439980,-500.0,0.00023287,3]
[349723698,1737395439989,-1665.44,0.00023287,3]
[349723700,1737395439999,-505.88,0.00023287,3]
[349723702,1737395440010,-330.85,0.00023287,3]
[349723704,1737395440020,-500.0,0.00023287,3]
[349723706,1737395440029,-226.76734028,0.00023287,3]
[349723708,1737395440039,-676.12,0.00023287,3]
[349723711,1737395440052,-500.0,0.00023287,3]
[349723712,1737395440062,-500.0,0.00023423,3]
[349723715,1737395440072,-500.0,0.00023423,3]
[349723717,1737395440081,-1121.75,0.00023423,3]
[349723719,1737395440091,-663.11,0.00023424,2]
[349723721,1737395440101,-325.15,0.00023424,3]
[349723723,1737395440111,-1665.44,0.00023424,3]
[349723725,1737395440121,-505.88,0.00023424,3]
[349723727,1737395440131,-500.0,0.00023424,3]
[349723729,1737395440141,-676.12,0.00023424,3]
[349723731,1737395440152,-500.0,0.00023424,3]
[349723733,1737395440162,-576.07340262,0.00023493,2]
[349723735,1737395440172,-370.21,0.000235,2]
[349723737,1737395440181,-1121.75,0.0002356,3]
[349723739,1737395440191,-663.11,0.00023561,2]
[349723741,1737395440200,-1665.44,0.00023561,3]
[349723743,1737395440210,-505.88,0.00023561,3]
[349723745,1737395440220,-500.0,0.00023561,3]
[349723747,1737395440229,-676.12,0.00023561,3]
[349723749,1737395440239,-500.0,0.00023561,3]
[349723751,1737395440248,-1121.75,0.00023697,3]
[349723753,1737395440257,-663.11,0.00023698,2]
[349723755,1737395440266,-1665.44,0.00023698,3]
[349723757,1737395440276,-505.88,0.00023698,3]
[349723759,1737395440285,-500.0,0.00023698,3]
[349723761,1737395440298,-676.12,0.00023698,3]
[349723763,1737395440310,-500.0,0.00023698,3]
[349723765,1737395440319,-420.0,0.00023817,2]
[349723767,1737395440328,-576.07340262,0.00023828,2]
[349723769,1737395440338,-1121.75,0.00023834,3]
[349723771,1737395440347,-663.11,0.00023835,2]
[349723773,1737395440356,-1665.44,0.00023835,3]
[349723775,1737395440366,-505.88,0.00023835,3]
[349723777,1737395440376,-500.0,0.00023835,3]
[349723779,1737395440385,-676.12,0.00023835,3]
[349723781,1737395440395,-426.97190091,0.00023835,3]
[349723783,1737395440404,-158.0,0.00023889,2]
[349723785,1737395440415,-158.0,0.00023889,2]
[349723787,1737395440425,-158.0,0.00023889,2]
[349723789,1737395440435,-158.0,0.00023889,2]
[349723791,1737395440444,-158.0,0.00023889,2]
[349723793,1737395440454,-158.0,0.00023889,2]
[349723795,1737395440463,-158.0,0.00023889,2]
[349723797,1737395440472,-158.0,0.00023889,2]
[349723799,1737395440482,-158.0,0.00023889,2]
[349723801,1737395440491,-158.0,0.00023889,2]
[349723803,1737395440500,-158.0,0.00023889,2]
[349723805,1737395440509,-158.0,0.00023889,2]
[349723807,1737395440518,-158.0,0.00023889,2]
[349723809,1737395440530,-158.0,0.00023889,2]
[349723811,1737395440544,-158.0,0.00023889,2]
[349723813,1737395440556,-158.0,0.00023889,2]
[349723815,1737395440566,-158.0,0.00023889,2]
[349723817,1737395440575,-158.0,0.00023889,2]
[349723819,1737395440585,-1121.75,0.00023971,3]
[349723821,1737395440595,-663.11,0.00023972,2]
[349723823,1737395440605,-1665.44,0.00023972,3]
[349723825,1737395440615,-505.88,0.00023972,3]
[349723827,1737395440624,-500.0,0.00023972,3]
[349723829,1737395440635,-676.12,0.00023972,3]
[349723831,1737395440645,-1000.0,0.00024,24]
[349723833,1737395440657,-500.0,0.00024069,3]
[349723835,1737395440667,-500.0,0.00024069,3]
[349723838,1737395440677,-1121.75,0.00024108,3]
[349723840,1737395440686,-663.11,0.00024109,2]
[349723842,1737395440695,-1665.44,0.00024109,3]
[349723844,1737395440706,-505.88,0.00024109,3]
[349723846,1737395440716,-500.0,0.00024109,3]
[349723848,1737395440726,-676.12,0.00024109,3]
[349723850,1737395440736,-500.0,0.00024163,3]
[349723852,1737395440745,-500.0,0.00024163,3]
[349723854,1737395440755,-576.07340262,0.00024163,2]
[349723856,1737395440764,-2000.0,0.000242,2]
[349723858,1737395440774,-300.0,0.000242,11]
[349723860,1737395440784,-150.0,0.000242,2]
[349723862,1737395440793,-1121.75,0.00024245,3]
[349723864,1737395440807,-663.11,0.00024246,2]
[349723866,1737395440817,-1665.44,0.00024246,3]
[349723868,1737395440827,-505.88,0.00024246,3]
[349723870,1737395440836,-500.0,0.00024246,3]
[349723872,1737395440846,-676.12,0.00024246,3]
[349723874,1737395440856,-500.0,0.00024259,3]
[349723876,1737395440865,-500.0,0.00024259,3]
[349723878,1737395440874,-500.0,0.0002426,3]
[349723880,1737395440884,-500.0,0.0002426,3]
[349723882,1737395440893,-500.0,0.0002426,3]
[349723884,1737395440903,-500.0,0.0002426,3]
[349723886,1737395440912,-310.4453468,0.0002426,3]
[349723894,1737395440983,-1216.07,0.00021917,3]
[349723896,1737395440994,-189.5546532,0.0002426,3]
[349723898,1737395441004,-500.0,0.0002426,3]
[349723900,1737395441014,-500.0,0.0002426,3]
[349723902,1737395441025,-489.43,0.0002426,3]
[349723904,1737395441036,-500.0,0.0002426,3]
[349723907,1737395441051,-500.0,0.0002426,3]
[349723909,1737395441062,-500.0,0.0002426,3]
[349723911,1737395441072,-500.0,0.0002426,3]
[349723913,1737395441083,-500.0,0.0002426,3]
[349723915,1737395441094,-500.0,0.0002426,3]
[349723916,1737395441104,-500.0,0.0002426,3]
[349723918,1737395441114,-296.66779123,0.00024262,2]
[349723920,1737395441124,-3460.64267255,0.00024262,5]
[349723922,1737395441134,-3300.43803022,0.00024262,5]
[349723925,1737395441145,-350656.13061504,0.00024263,61]
[349723927,1737395441158,-326.44999999,0.00024263,61]
[349723929,1737395441171,-252.25,0.00024263,61]
[349723931,1737395441183,-2040.0,0.00024263,61]
[349723934,1737395441197,-724.88573996,0.00024263,61]
[349723936,1737395441213,-395.0,0.00023929,2]
[349723938,1737395441223,-616.0,0.00024263,61]
[349723941,1737395441316,-1509.78670369,0.00021698,2]
[349723942,1737395441328,-1518.24569331,0.00021698,2]
[349723943,1737395441337,-1216.07,0.00021917,3]
[349723944,1737395441347,-1216.07,0.00022052,3]
[349723945,1737395441357,-1216.07,0.00022053,3]
[349723946,1737395441366,-1216.07,0.00022189,3]
[349723947,1737395441376,-1216.07,0.00022326,3]
[349723948,1737395441385,-1216.07,0.00022463,3]
[349723949,1737395441394,-1216.07,0.00022601,3]
[349723951,1737395441403,-1216.07,0.00022874,3]
[349723953,1737395441413,-1216.07,0.00023149,3]
[349723955,1737395441423,-1216.07,0.0002356,3]
[349723957,1737395441432,-1216.07,0.00023971,3]
[349723959,1737395441442,-15467.03649579,0.00024263,61]
[349723961,1737395441454,-81694.50000008,0.00024263,61]
[349723963,1737395441466,-48617.83302628,0.00024263,61]
[349723965,1737395441478,-73729.92787947,0.00024263,61]
[349723967,1737395441490,-11452.35200448,0.00024263,61]
[349723974,1737395441542,-500.0,0.00021917,3]
[349723976,1737395441556,-1216.07,0.00024163,3]
[349723978,1737395441567,-1216.07,0.00024163,3]
[349723979,1737395441577,-1216.07,0.00024259,3]
[349723981,1737395441587,-1216.07,0.00024259,3]
[349723984,1737395441596,-1216.07,0.00024262,3]
[349723985,1737395441606,-1216.07,0.00024262,3]
[349723988,1737395441615,-1216.07,0.00024262,3]
[349723990,1737395441625,-89387.5100023,0.00024263,61]
[349723992,1737395441637,-597.33745069,0.00024263,61]
[349723994,1737395441650,-741.39413388,0.00024263,61]
[349723996,1737395441661,-3188.9,0.00024263,61]
[349723999,1737395441672,-5099.0,0.00024263,61]
[349724001,1737395441683,-1958.64717201,0.00024263,61]
[349724143,1737395442933,-499.0,0.00021917,2]
[349724145,1737395442943,-401.0,0.00024262,3]
[349724168,1737395443166,-815.07,0.00024262,3]
[349724170,1737395443176,-649.583833,0.00024262,3]
[349724412,1737395445659,-278.15841541,0.00021917,3]
[349724414,1737395445669,-566.486167,0.00024262,3]
[349724416,1737395445678,-355.35541759,0.00024262,3]
[349724470,1737395446066,-860.71458241,0.00024262,3]
[349724472,1737395446076,-639.28541759,0.00024262,3]
[349724478,1737395446121,-576.78458241,0.00024262,3]
[349724480,1737395446131,-1216.22,0.00024262,3]
[349724482,1737395446140,-500.0,0.00024262,2]
[349724484,1737395446149,-18233.10702859,0.00024263,61]
[349724486,1737395446161,-7748.3822,0.00024263,61]
[349724489,1737395446185,-98068.50674465,0.00024263,61]
[349724492,1737395446197,-12572.32843552,0.00024263,61]
[349724496,1737395446208,-46304.40001467,0.00024263,61]
[349724499,1737395446219,-19568.47023,0.00024263,61]
[349725538,1737395480120,165.994526,0.00013973,2]
[349725539,1737395490952,160.0,0.00023402,120]
[349725547,1737395654364,507.72,0.000167,2]
[349725561,1737396355895,165.969593,0.00013973,2]
[349725629,1737396632305,-303.06667103,0.00019,2]
[349725631,1737396632315,-303.06667103,0.0001919,2]
[349725633,1737396632325,-303.06667103,0.0001938,2]
[349725634,1737396632336,-333.27342064,0.00019405,2]
[349725636,1737396632345,-303.06667103,0.0001957,2]
[349725646,1737396632486,-303.06667103,0.0001976,2]
[349725647,1737396632496,-4751.95125265,0.00019799,2]
[349725648,1737396632506,-196.84678371,0.00019899,2]
[349725649,1737396632516,-223.71063019,0.000199,2]
[349725650,1737396632530,-454.60000655,0.0001995,4]
[349725651,1737396632541,-500.0,0.00019973,2]
[349725652,1737396632550,-884.65290202,0.0001999,2]
[349725653,1737396632560,-385.12828622,0.00019999,2]
[349725654,1737396632569,-174.043,0.00019999,2]
[349725655,1737396632578,-300.0,0.00019999,2]
[349725656,1737396632586,-299.0558875,0.0002,2]
[349725657,1737396632599,-116192.36164382,0.0002,2]
[349725658,1737396632611,-439.565,0.0002,2]
[349725659,1737396632672,-28252.4846122,0.0002,2]
[349725660,1737396632682,-160.0,0.0002,2]
[349725661,1737396632691,-65.76063478,0.0002014,4]
[349725662,1737396632703,-86.45186912,0.0002014,4]
[349725663,1737396632713,-171.611024,0.00020151,2]
[349725664,1737396632722,-158.0,0.00020221,2]
[349725665,1737396632732,-223.71063018,0.00020414,2]
[349725666,1737396632741,-411.19673576,0.00020432,2]
[349725667,1737396632752,-88.80326424,0.00020432,2]
[349725668,1737396632761,-220.91072426,0.00020521,2]
[349725707,1737396638168,-1758.41932378,0.00018854,2]
[349725709,1737396638180,-3458.62459551,0.00018854,2]
[349725714,1737396638222,-3904.51730981,0.00018854,2]
[349725716,1737396638232,-165.82744774,0.00020521,2]
[349725717,1737396638241,-1000.0,0.00020521,2]
[349725718,1737396638251,-386.738172,0.00020603,2]
[349725719,1737396638261,-386.738172,0.00020685,2]
[349725720,1737396638270,-3268.0,0.00020695,2]
[349725721,1737396638282,-188.621013,0.00020747,2]
[349725722,1737396638292,-28.33906406,0.00020767,2]
[349725723,1737396638304,-358.39910794,0.00020767,2]
[349725724,1737396638314,-386.738172,0.00020849,2]
[349725725,1737396638323,-206.5677164,0.000209,2]
[349725726,1737396638333,-223.71063018,0.00020927,2]
[349725727,1737396638342,-386.738172,0.00020932,2]
[349725728,1737396638352,-386.738172,0.00021014,2]
[349725729,1737396638361,-386.738172,0.00021096,2]
[349725730,1737396638372,-40.48805144,0.00021123,2]
[349725731,1737396638384,-446.20833079,0.00021123,2]
[349725732,1737396638396,-608.09874741,0.00021123,2]
[349725733,1737396638406,-206.56771638,0.0002115,2]
[349725734,1737396638415,-14.02248621,0.00021302,2]
[349725770,1737396640402,-714.28943998,0.00021302,2]
[349725772,1737396640413,-206.56771638,0.000214,2]
[349725775,1737396640424,-223.71063018,0.00021441,2]
[349725777,1737396640434,-206.56771638,0.0002165,3]
[349725779,1737396640445,-420.0,0.00021777,2]
[349725781,1737396640454,-206.56771638,0.000219,3]
[349725783,1737396640464,-500.0,0.00021913,2]
[349725785,1737396640475,-500.0,0.00021913,2]
[349725786,1737396640485,-500.0,0.00021913,2]
[349725788,1737396640495,-503.21138459,0.00021913,2]
[349725790,1737396640505,-500.0,0.00021913,2]
[349725792,1737396640515,-500.0,0.00021913,2]
[349725794,1737396640526,-372.78553753,0.00021913,2]
[349725796,1737396640539,-500.0,0.00021913,2]
[349725798,1737396640550,-500.0,0.00021913,2]
[349725800,1737396640560,-500.0,0.00021913,2]
[349725802,1737396640571,-588.68497984,0.00021913,2]
[349725804,1737396640580,-500.0,0.00021913,2]
[349725805,1737396640591,-500.0,0.00021913,2]
[349725806,1737396640601,-500.0,0.00021913,2]
[349725808,1737396640611,-500.0,0.00021913,2]
[349725811,1737396640621,-500.0,0.00021913,2]
[349725812,1737396640631,-370.84760909,0.00021913,2]
[349725814,1737396640642,-500.0,0.00021913,2]
[349725816,1737396640652,-451.23222415,0.00021913,2]
[349725818,1737396640662,-500.0,0.00021913,2]
[349725821,1737396640672,-500.0,0.00021913,2]
[349725823,1737396640682,-500.0,0.00021913,2]
[349725824,1737396640692,-500.0,0.00021913,2]
[349725827,1737396640702,-500.0,0.00021913,2]
[349725829,1737396640712,-500.0,0.00021913,2]
[349725831,1737396640722,-500.0,0.00021913,2]
[349725833,1737396640732,-500.0,0.00021913,2]
[349725835,1737396640742,-500.0,0.00021913,2]
[349725837,1737396640752,-500.0,0.00021913,2]
[349725839,1737396640762,-500.0,0.00021913,2]
[349725841,1737396640771,-500.0,0.00021913,2]
[349725843,1737396640781,-500.0,0.00021913,2]
[349725845,1737396640796,-500.0,0.00021913,2]
[349725847,1737396640806,-500.0,0.00021913,2]
[349725849,1737396640816,-500.0,0.00021913,2]
[349725851,1737396640825,-500.0,0.00021913,2]
[349725852,1737396640834,-500.0,0.00021913,2]
[349725854,1737396640844,-500.0,0.00021913,2]
[349725856,1737396640854,-500.0,0.00021913,2]
[349725857,1737396640864,-500.0,0.00021913,2]
[349725858,1737396640874,-500.0,0.00021913,2]
[349725859,1737396640884,-500.0,0.00021913,2]
[349725860,1737396640894,-500.0,0.00021913,2]
[349725861,1737396640905,-500.0,0.00021913,2]
[349725862,1737396640915,-500.0,0.00021913,2]
[349725863,1737396640925,-500.0,0.00021913,2]
[349725864,1737396640936,-500.0,0.00021913,2]
[349725865,1737396640948,-500.0,0.00021913,2]
[349725866,1737396640959,-500.0,0.00021913,2]
[349725867,1737396640969,-500.0,0.00021913,2]
[349725868,1737396640979,-500.0,0.00021913,2]
[349725869,1737396640989,-500.0,0.00021913,2]
[349725870,1737396641000,-500.0,0.00021913,2]
[349725871,1737396641010,-500.0,0.00021913,2]
[349725872,1737396641020,-500.0,0.00021913,2]
[349725873,1737396641031,-500.0,0.00021913,2]
[349725874,1737396641044,-500.0,0.00021913,2]
[349725875,1737396641054,-500.0,0.00021913,2]
[349725876,1737396641064,-500.0,0.00021913,2]
[349725877,1737396641074,-500.0,0.00021913,2]
[349725879,1737396641083,-500.0,0.00021913,2]
[349725881,1737396641093,-500.0,0.00021913,2]
[349725884,1737396641103,-500.0,0.00021913,2]
[349725886,1737396641114,-594.12448107,0.00021913,2]
[349725888,1737396641125,-500.0,0.00021913,2]
[349725890,1737396641138,-500.0,0.00021913,2]
[349725892,1737396641148,-500.0,0.00021913,2]
[349725894,1737396641158,-500.0,0.00021913,2]
[349725896,1737396641168,-500.0,0.00021913,2]
[349725898,1737396641178,-500.0,0.00021913,2]
[349725900,1737396641189,-500.0,0.00021913,2]
[349725902,1737396641200,-500.0,0.00021913,2]
[349725904,1737396641210,-500.0,0.00021913,2]
[349725906,1737396641220,-500.0,0.00021913,2]
[349725908,1737396641230,-500.0,0.00021913,2]
[349725910,1737396641240,-500.0,0.00021913,2]
[349725912,1737396641250,-500.0,0.00021913,2]
[349725914,1737396641260,-500.0,0.00021913,2]
[349725916,1737396641270,-500.0,0.00021913,2]
[349725918,1737396641280,-500.0,0.00021913,2]
[349725921,1737396641296,-500.0,0.00021913,2]
[349725923,1737396641306,-500.0,0.00021913,2]
[349725925,1737396641316,-500.0,0.00021913,2]
[349725927,1737396641326,-231.46680643,0.00021913,2]
[349725929,1737396641336,-500.0,0.00021913,2]
[349725931,1737396641345,-500.0,0.00021913,2]
[349725933,1737396641355,-500.0,0.00021913,2]
[349725935,1737396641364,-500.0,0.00021913,2]
[349725937,1737396641375,-500.0,0.00021913,2]
[349725939,1737396641385,-500.0,0.00021913,2]
[349725941,1737396641395,-500.0,0.00021913,2]
[349725943,1737396641405,-500.0,0.00021913,2]
[349725945,1737396641415,-500.0,0.00021913,2]
[349725948,1737396641426,-500.0,0.00021913,2]
[349725949,1737396641435,-500.0,0.00021913,2]
[349725952,1737396641446,-500.0,0.00021913,2]
[349725954,1737396641457,-500.0,0.00021913,2]
[349725956,1737396641467,-500.0,0.00021913,2]
[349725958,1737396641477,-500.0,0.00021913,2]
[349725960,1737396641486,-500.0,0.00021913,2]
[349725962,1737396641496,-500.0,0.00021913,2]
[349725964,1737396641505,-500.0,0.00021913,2]
[349725966,1737396641515,-500.0,0.00021913,2]
[349725968,1737396641525,-500.0,0.00021913,2]
[349725970,1737396641537,-500.0,0.00021913,2]
[349725972,1737396641546,-500.0,0.00021913,2]
[349725974,1737396641556,-500.0,0.00021913,2]
[349725976,1737396641565,-500.0,0.00021913,2]
[349725978,1737396641574,-500.0,0.00021913,2]
[349725980,1737396641584,-500.0,0.00021913,2]
[349725982,1737396641594,-500.0,0.00021913,2]
[349725984,1737396641603,-500.0,0.00021913,2]
[349725986,1737396641612,-500.0,0.00021913,2]
[349725988,1737396641622,-500.0,0.00021913,2]
[349725990,1737396641632,-500.0,0.00021913,2]
[349725992,1737396641642,-500.0,0.00021913,2]
[349725994,1737396641652,-500.0,0.00021913,2]
[349725996,1737396641663,-319.89640574,0.00021913,2]
[349725998,1737396641673,-500.0,0.00021913,2]
[349726000,1737396641683,-500.0,0.00021913,2]
[349726002,1737396641693,-500.0,0.00021913,2]
[349726004,1737396641704,-500.0,0.00021913,2]
[349726006,1737396641714,-500.0,0.00021913,2]
[349726008,1737396641724,-500.0,0.00021913,2]
[349726010,1737396641734,-500.0,0.00021913,2]
[349726012,1737396641744,-500.0,0.00021913,2]
[349726014,1737396641753,-500.0,0.00021913,2]
[349726021,1737396641882,-500.0,0.00021913,2]
[349726022,1737396641893,-500.0,0.00021913,2]
[349726023,1737396641903,-500.0,0.00021913,2]
[349726024,1737396641913,-638.33208408,0.00021913,2]
[349726025,1737396641924,-500.0,0.00021913,2]
[349726026,1737396641934,-500.0,0.00021913,2]
[349726027,1737396641945,-500.0,0.00021913,2]
[349726028,1737396641956,-500.0,0.00021913,2]
[349726029,1737396641966,-500.0,0.00021913,2]
[349726031,1737396641976,-500.0,0.00021913,2]
[349726033,1737396641987,-500.0,0.00021913,2]
[349726035,1737396641998,-500.0,0.00021913,2]
[349726037,1737396642008,-500.0,0.00021913,2]
[349726040,1737396642019,-500.0,0.00021913,2]
[349726042,1737396642030,-500.0,0.00021913,2]
[349726044,1737396642044,-500.0,0.00021913,2]
[349726046,1737396642054,-500.0,0.00021913,2]
[349726048,1737396642063,-500.0,0.00021913,2]
[349726050,1737396642073,-500.0,0.00021913,2]
[349726052,1737396642083,-500.0,0.00021913,2]
[349726054,1737396642093,-500.0,0.00021913,2]
[349726056,1737396642104,-500.0,0.00021913,2]
[349726058,1737396642114,-500.0,0.00021913,2]
[349726060,1737396642124,-500.0,0.00021913,2]
[349726062,1737396642134,-500.0,0.00021913,2]
[349726064,1737396642144,-500.0,0.00021913,2]
[349726066,1737396642154,-500.0,0.00021913,2]
[349726068,1737396642165,-500.0,0.00021913,2]
[349726070,1737396642174,-145.10959055,0.00021913,2]
[349726073,1737396642189,-354.89040945,0.00021913,2]
[349726075,1737396642199,-500.0,0.00021913,2]
[349726077,1737396642210,-503.42511213,0.00021916,2]
[349726079,1737396642220,-500.0,0.00021917,3]
[349726081,1737396642230,-500.0,0.00021917,3]
[349726083,1737396642240,-500.0,0.00021917,3]
[349726085,1737396642250,-500.0,0.00021917,3]
[349726087,1737396642259,-122.07060956,0.00021917,3]
[349726089,1737396642271,-418.31496845,0.00021917,3]
[349726091,1737396642281,-500.0,0.00021917,3]
[349726093,1737396642295,-500.0,0.00021917,3]
[349726095,1737396642306,-500.0,0.00021917,3]
[349726097,1737396642317,-500.0,0.00021917,3]
[349726099,1737396642327,-500.0,0.00021917,2]
[349726101,1737396642336,-614.31400426,0.00021917,3]
[349726104,1737396642348,-137.25599574,0.00021917,3]
[349726106,1737396642358,-800.87,0.00021917,3]
[349726108,1737396642367,-17.11488122,0.00021917,3]
[349726111,1737396642397,-482.88511878,0.00021917,3]
[349726113,1737396642407,-500.0,0.00021917,3]
[349726115,1737396642417,-500.0,0.00021917,3]
[349726117,1737396642427,-373.95680578,0.00021917,3]
[349726120,1737396642439,-126.04319422,0.00021917,3]
[349726122,1737396642449,-500.0,0.00021917,3]
[349726124,1737396642459,-500.0,0.00021917,3]